Workbook

Sheet Tabela sa podacima
A1: Fitnes grafikon napretka za muškarce
A3: Visina (m) | B3: 1.90
A6: Datum | B6: Težina (kg) | C6: Grudi (cm) | D6: Struk (cm) | E6: Kukovi (cm) | F6: Procenjena idealna težina (kg) | G6: Procenjena težina masnih naslaga (kg) | H6: Procenjeni procenat masnih naslaga (kg) | I6: Procenjeni indeks telesne mase (ITM)
A7: 2007-01-01 | B7: 91.0 | C7: 106.5 | D7: 91.5 | E7: 86.0 | F7: =(1.1*fitness[[#This Row],[Težina (kg)]])-128*(fitness[[#This Row],[Težina (kg)]]^2/(100*$B$3)^2) -> 70.7 | G7: =B7-F7 -> 20.3 | H7: =IF(ISERROR((G7*100)/B7),"0.0",(G7*100)/B7)*0.01 -> 22.3% | I7: =(fitness[[#This Row],[Težina (kg)]]/($B$3*$B$3)) -> 25.2
A8: 2007-01-08 | B8: 91.0 | C8: 106.5 | D8: 91.5 | E8: 86.0 | F8: =(1.1*fitness[[#This Row],[Težina (kg)]])-128*(fitness[[#This Row],[Težina (kg)]]^2/(100*$B$3)^2) -> 70.7 | G8: =B8-F8 -> 20.3 | H8: 22.3% | I8: =(fitness[[#This Row],[Težina (kg)]]/($B$3*$B$3)) -> 25.2
A9: 2007-01-15 | B9: 90.5 | C9: 106.5 | D9: 90.0 | E9: 85.0 | F9: =(1.1*fitness[[#This Row],[Težina (kg)]])-128*(fitness[[#This Row],[Težina (kg)]]^2/(100*$B$3)^2) -> 70.5 | G9: =B9-F9 -> 20.0 | H9: 22.1% | I9: =(fitness[[#This Row],[Težina (kg)]]/($B$3*$B$3)) -> 25.1
A10: 2007-01-22 | B10: 89.5 | C10: 106.5 | D10: 90.0 | E10: 84.0 | F10: =(1.1*fitness[[#This Row],[Težina (kg)]])-128*(fitness[[#This Row],[Težina (kg)]]^2/(100*$B$3)^2) -> 70.0 | G10: =B10-F10 -> 19.5 | H10: 21.7% | I10: =(fitness[[#This Row],[Težina (kg)]]/($B$3*$B$3)) -> 24.8
A11: 2007-01-29 | B11: 89.5 | C11: 108.0 | D11: 90.0 | E11: 84.0 | F11: =(1.1*fitness[[#This Row],[Težina (kg)]])-128*(fitness[[#This Row],[Težina (kg)]]^2/(100*$B$3)^2) -> 70.0 | G11: =B11-F11 -> 19.5 | H11: 21.7% | I11: =(fitness[[#This Row],[Težina (kg)]]/($B$3*$B$3)) -> 24.8
